Cogmind - Beta 15 @@@ ROGUE MODE // 2025.07.30 @ 15:50:52 Player: Inverisimilidude Result: Destroyed by C-17 Slicer with Blade Saw Performance ------------- Evolutions (3) 1500 Regions Visited (4) 800 Robots Destroyed (65) 325 Value Destroyed (1719) 1719 Prototype IDs (7) 140 Alien Tech Used (0) 0 Bonus (-315) -315 TOTAL SCORE: 4169 Bonus ------- Follower Combat Kills 105 Friendly Fire -420 Cogmind --------- Core Integrity 0/700 Matter 290/300 Energy 98/100 System Corruption 0% Temperature Cool (0) Movement Core (50) Location -7/Factory Parts ------- > --- POWER (1) -------- (None) > --- PROPULSION (4) --- (None) > --- UTILITY (5) ------ (None) > --- WEAPON (3) ------- (None) > --- INVENTORY (5) ---- Cooling System Improved Terrain Scan Processor Hardlight Generator Peak State ------------ > --- POWER ------------ Cooled Ion Engine > --- PROPULSION ------- Wheel Wheel Compact Wheel > --- UTILITY ---------- High-capacity Storage Unit Visual Processing Unit Improved Terrain Scanner Hardened Medium Armor Plating > --- WEAPON ----------- Heavy Assault Rifle Autogun Katana > --- INVENTORY -------- Improved Ion Engine Wheel Cooling System Large Matter Pod Improved Terrain Scan Processor Seismic Detector Seismic Detector Hardened Medium Armor Plating Hardlight Generator High-powered Tractor Beam Heavy EM Pulse Gun Autogun Improved Light Cannon Mini Grenade Launcher Mini Grenade Launcher Mini Grenade Launcher [Rating: 25] Favorites ----------- Power Ion Engine Engine Ion Engine Propulsion Compact Wheel Wheel Compact Wheel Utility High-capacity Storage Unit Device Seismic Detector Storage High-capacity Storage Unit Processor Visual Processing Unit Protection Hardened Medium Armor Plating Weapon Light Assault Rifle Energy Gun Heavy EM Pulse Gun Ballistic Gun Light Assault Rifle Ballistic Cannon Improved Light Cannon Launcher Mini Grenade Launcher Slashing Weapon Katana Build | -11 -10 -9 -8 -7 ------- Run | Yrd Mat Mat Mat Fac Slots Evolved 6 | . . 2 2 2 Power . | . . . . . Propulsion 2 | . . . 1 1 Utility 3 | . . 1 1 1 Weapon 1 | . . 1 . . Parts Attached 37 | 8 6 15 6 2 Power 3 | 1 1 1 . . Engine 3 | 1 1 1 . . Core . | . . . . . Reactor . | . . . . . Propulsion 6 | 2 . 2 2 . Treads . | . . . . . Leg . | . . . . . Wheel 6 | 2 . 2 2 . Hover . | . . . . . Flight . | . . . . . Utility 10 | 2 2 5 1 . Device 4 | 1 1 1 1 . Storage 2 | 1 1 . . . Processor 2 | . . 2 . . Hackware . | . . . . . Protection 2 | . . 2 . . Artifact . | . . . . . Weapon 18 | 3 3 7 3 2 Energy Gun 5 | 1 . 3 1 . Energy Cannon . | . . . . . Ballistic Gun 6 | 2 . 3 . 1 Ballistic Cannon 1 | . . . 1 . Launcher 5 | . 3 1 . 1 Special Weapon . | . . . . . Impact Weapon . | . . . . . Slashing Weapon 1 | . . . 1 . Piercing Weapon . | . . . . . Special Melee Weapon . | . . . . . Unidentified Prototypes 1 | . . 1 . . Parts Lost 20 | . 1 6 11 2 Power 3 | . 1 1 1 . Propulsion 6 | . . 2 4 . Utility 3 | . . . 3 . Weapon 8 | . . 3 3 2 Highest Loss Streak 10 | . 1 2 10 1 To Critical Strikes . | . . . . . Average Backups 10 | 3 10 18 8 3 Power . | . . . . . Propulsion 2 | 1 3 4 . . Utility 4 | . 2 6 5 3 Weapon 3 | . 3 7 2 . Tool/Special . | . . . . . Unused Backups 10 | . . 5 3 2 Power 1 | . . . 1 . Propulsion 2 | . . 2 . . Utility 6 | . . 2 2 2 Weapon 1 | . . 1 . . Tool/Special . | . . . . . Average Slot Usage (%) 70 | . 99 98 39 2 Engine 8 | . 13 10 3 . Wheel 17 | . 28 21 9 . Device 7 | . 14 7 4 . Storage 8 | . 14 11 3 . Processor 4 | . . 10 3 . Protection 1 | . . 3 2 . Energy Gun 6 | . 3 15 . . Ballistic Gun 13 | . 20 17 9 . Launcher 1 | . 3 . . 1 Peak Build Rating 25 | 7 11 19 25 4 Average Rating 9 | 5 8 15 9 . On Entrance 7 | . 7 10 18 1 Naked Turns 501 | . . . 215 286 Heaviest Build 66 | 12 51 60 66 4 Greatest Support 36 | 32 32 32 36 3 Greatest Overweight (x) 5 | . 1 2 5 1 Average Overweight (x) . | . . 1 . . Largest Inventory Capacity 20 | 8 20 20 20 5 Average Capacity 14 | 7 18 20 11 5 Most Carried 20 | 5 18 20 16 4 Average Carried 10 | 3 10 18 8 3 Final Capacity 20 | 8 20 20 5 5 Final Carried 18 | 5 18 16 4 3 Class Distribution -------------------- 62% | Mutant 23% | Skirmisher 9% | Tank 3% | Scavenger-Skirmisher Dominant Class ---------------- Mutant | -10/Materials Skirmisher | -9/Materials Mutant | -8/Materials Mutant | -7/Factory Resources | -11 -10 -9 -8 -7 ----------- Run | Yrd Mat Mat Mat Fac Matter Collected 1518 | 324 117 437 435 205 Remotely . | . . . . . Salvage Created 1485 | 76 252 532 496 129 Parts 113 | 7 22 35 29 20 Haulers Intercepted 1 | . . 1 . . Recyclers Shooed 1 | . . . . 1 Parts Field Recycled . | . . . . . Retrieved Matter . | . . . . . Parts Self-Destructed . | . . . . . Prevented . | . . . . . Kills | -11 -10 -9 -8 -7 ------- Run | Yrd Mat Mat Mat Fac Combat Hostiles Destroyed 45 | . 13 15 13 4 Guns 17 | . 2 12 3 . Cannons 1 | . . . 1 . AOE 27 | . 11 3 9 4 Classes Destroyed 14 | 1 5 4 3 1 Worker 4 | . . . 1 3 Builder 4 | . . . 3 1 Tunneler 5 | 4 . 1 . . Hauler 1 | . . 1 . . Recycler 2 | . 1 . 1 . Mechanic 1 | . 1 . . . Operator 1 | . . 1 . . Watcher 2 | . 1 1 . . Swarmer 17 | . 9 4 1 3 Grunt 20 | . 4 6 10 . Duelist 3 | . . 2 1 . Sentry 3 | . . 3 . . Hunter 1 | . . . 1 . Programmer 1 | . . . . 1 Best Kill Streak 13 | 2 8 3 13 6 Combat Bots Only 9 | . 6 3 9 4 Max Kills in Single Turn 3 | 1 2 2 3 1 Gunslinging 1 | . . 1 . . Exploded 2 | . 1 1 2 1 Melee . | . . . . . Uniques/NPCs Destroyed . | . . . . . Combat | -11 -10 -9 -8 -7 -------- Run | Yrd Mat Mat Mat Fac Hostile Shots Fired 243 | . 24 68 81 70 Missed 74 | . 11 9 29 25 Hits 169 | . 13 59 52 45 Melee 8 | . . 4 1 3 Projectile 161 | . 13 55 51 42 AOE 1 | . . . . 1 Critical Strikes 10 | . . 2 4 4 Damage Taken 3183 | . 169 769 1359 886 Core 1253 | . 34 82 432 705 Absorbed by Shields . | . . . . . Core Remaining (%) 71 | 100 86 79 21 . Volleys Fired 121 | 11 16 43 30 21 Largest 3 | 2 2 3 3 1 Hottest 140 | 40 60 140 91 30 Shots Fired 261 | 22 27 125 66 21 Gun 209 | 22 11 122 51 3 Cannon 8 | . . . 8 . Launcher 44 | . 16 3 7 18 Special . | . . . . . Kinetic 151 | 22 11 57 58 3 Thermal 40 | . . 40 . . Explosive 44 | . 16 3 7 18 Electromagnetic 26 | . . 25 1 . Robot Hit Streak 9 | 3 4 9 7 8 Robot Miss Streak 8 | 4 2 8 4 5 Penetration Max . | . . . . . Secondary Targets 6 | . . 5 1 . Max Gunslinging Chain 1 | . . 1 1 . Shots Hit Robots 147 | 11 9 77 41 9 Core Hits 142 | 4 26 50 39 23 Critical Kills . | . . . . . Critical Parts Destroyed 1 | . . 1 . . Critical Strikes 3 | . . 2 1 . Burn 1 | . . 1 . . Destroy 1 | . . 1 . . Blast 1 | . . . 1 . Melee Attacks . | . . . . . Impact . | . . . . . Slashing . | . . . . . Piercing . | . . . . . Sneak Attacks . | . . . . . Combat Hostiles . | . . . . . Follow-up Attacks . | . . . . . Damage Inflicted 4661 | 126 891 1217 1680 747 Guns 1619 | 126 65 925 482 21 Cannons 106 | . . . 106 . Explosions 2933 | . 826 292 1089 726 Melee . | . . . . . Ramming 3 | . . . 3 . Kinetic 1142 | 126 65 358 572 21 Thermal 366 | . . 366 . . Explosive 2878 | . 826 292 1089 671 Electromagnetic 272 | . . 201 16 55 Impact . | . . . . . Slashing . | . . . . . Piercing . | . . . . . Highest Corruption . | . . . . . Average Corruption . | . . . . . Corruption Purged . | . . . . . Corruption Blocked . | . . . . . Overload Shots . | . . . . . Overflow Damage 64 | . 14 . 24 26 Projectiles . | . . . . . Explosions 64 | . 14 . 24 26 Melee . | . . . . . Knockbacks . | . . . . . Impact . | . . . . . Kinetic . | . . . . . Secondary . | . . . . . Self-Inflicted Damage 167 | . 50 . 3 114 Shots 7 | . 2 . 1 4 Rammed 1 | . . . 1 . Targets Rammed 1 | . . . 1 . Kicked . | . . . . . Crushed . | . . . . . Highest Temperature 324 | . 5 324 131 53 Average Temperature 86 | . 3 98 49 24 Received Heat Transfer 654 | . 18 204 198 234 Effects 3 | . . 3 . . Interference 3 | . . 3 . . Siege Activations . | . . . . . Martial Activations . | . . . . . Shielding Activations . | . . . . . Robots Disrupted . | . . . . . Combat Hostiles . | . . . . . Robots Corrupted . | . . . . . Combat Hostiles . | . . . . . Parts Fried . | . . . . . Impact Corruptions . | . . . . . Robots Melted . | . . . . . Combat Hostiles . | . . . . . Parts Melted . | . . . . . Heat Transferred 778 | . . 778 . . Parts Sabotaged . | . . . . . Parts Stolen . | . . . . . Parts Stripped . | . . . . . Power Chain Reactions . | . . . . . Alert | -11 -10 -9 -8 -7 ------- Run | Yrd Mat Mat Mat Fac Maximum Alert Level 1 | . 1 . 1 1 Low Security (%) 69 | 100 55 100 62 25 Level 1 30 | . 44 . 37 74 Level 2 . | . . . . . Level 3 . | . . . . . Level 4 . | . . . . . Level 5 . | . . . . . High Security . | . . . . . Max Security . | . . . . . Peak Influence 344 | 5 314 197 330 344 Initial 136 | . . 98 67 136 Average 132 | . 135 94 156 236 Influence Increases 1688 | 20 424 437 533 274 Destroy 0b10 Robot/C 960 | . 260 300 320 80 Destroy 0b10 Robot/NC 100 | 20 15 20 25 20 Destroy Leader 196 | . 52 74 50 20 Allied During Kill 3 | . . . 3 . Successful Hack 19 | . 11 5 . 3 Select Force Hacks 50 | . . . 50 . Disable Machine 135 | . . . 30 105 Destroy Structure 180 | . 86 23 25 46 Lose Combat Pursuer 45 | . . 15 30 . Influence Decreases 1504 | 20 190 511 393 390 Entered New Map 393 | . . 136 93 164 Time Decay 911 | 20 180 315 190 206 Lost Part 200 | . 10 60 110 20 Squads Dispatched 15 | . 1 1 8 5 Investigation 4 | . . 1 2 1 Extermination . | . . . . . Reinforcement 8 | . 1 . 4 3 Assault . | . . . . . Garrison 3 | . . . 2 1 Intercept . | . . . . . Searches Triggered . | . . . . . Construction Impeded 1 | . . . . 1 Haulers Reinforced . | . . . . . Active Scanning Responses . | . . . . . Cargo Convoy Interrupts . | . . . . . Stealth | -11 -10 -9 -8 -7 --------- Run | Yrd Mat Mat Mat Fac Distress Signals 8 | . 1 1 4 2 Communications Jammed . | . . . . . Distress Signals . | . . . . . Times Spotted 84 | . 16 23 26 19 Peak Tracking Total 11 | . 4 5 11 5 Tactical Retreats 4 | . . 1 2 1 Traps | -11 -10 -9 -8 -7 ------- Run | Yrd Mat Mat Mat Fac Traps Triggered . | . . . . . Indirectly . | . . . . . Trap Hack Attempts . | . . . . . Triggered . | . . . . . Disarmed . | . . . . . Reprogrammed . | . . . . . Reused . | . . . . . Traps Extracted . | . . . . . Installed . | . . . . . Triggered . | . . . . . Machines | -11 -10 -9 -8 -7 ---------- Run | Yrd Mat Mat Mat Fac Machines Disabled 10 | . 1 . 2 7 Max in Single Turn 2 | . 1 . 1 2 Machines Repaired . | . . . . . Machines Dismantled . | . . . . . Machines Sabotaged 1 | . . . 1 . Overloaded Fab Kills . | . . . . . Hacking | -11 -10 -9 -8 -7 --------- Run | Yrd Mat Mat Mat Fac Machines Accessed 14 | . 5 3 3 3 Terminals 9 | . 4 3 2 . Fabricators 1 | . . . . 1 Repair Stations . | . . . . . Recycling Units 1 | . 1 . . . Scanalyzers . | . . . . . Garrison Access 3 | . . . 1 2 Total Hacks 38 | . 21 7 5 5 Successful 16 | . 7 5 3 1 Failed 22 | . 14 2 2 4 Catastrophic 6 | . 3 1 . 2 Database Lockouts . | . . . . . Manual 20 | . 4 3 8 5 Terminals 26 | . 16 7 3 . Fabricators 1 | . . . . 1 Repair Stations . | . . . . . Recycling Units 5 | . 5 . . . Scanalyzers . | . . . . . Garrison Access 6 | . . . 2 4 Terminal Hacks 7 | . 3 4 . . Prototype ID Bank 3 | . 1 2 . . Alert Level 1 | . . 1 . . Locate Traps 1 | . 1 . . . Dispatch Records 1 | . . 1 . . Registered Components 1 | . 1 . . . Fabricator Hacks . | . . . . . Repair Station Hacks . | . . . . . Recycling Unit Hacks 3 | . 3 . . . Report Inventory 1 | . 1 . . . Retrieve Matter 1 | . 1 . . . Retrieve Components 1 | . 1 . . . Scanalyzer . | . . . . . Garrison Access Hacks . | . . . . . Unauthorized Hacks 6 | . 1 1 3 1 Terminals 3 | . 1 1 1 . Operators 2 | . 1 1 . . Sabotage 1 | . . . 1 . Fabricators . | . . . . . Repair Stations . | . . . . . Recycling Units . | . . . . . Scanalyzers . | . . . . . Garrison Access 3 | . . . 2 1 Broadcast 1 | . . . . 1 Decoy 1 | . . . 1 . Reprogram 1 | . . . 1 . Data Cores Recovered 2 | . . 1 . 1 Used . | . . . . . Hacking Detections 11 | . 5 2 2 2 Full Trace Events 4 | . 2 1 . 1 Feedback Events . | . . . . . Feedback Blocked . | . . . . . Robot Schematics Acquired . | . . . . . Robots Built . | . . . . . Authchips . | . . . . . Time . | . . . . . Total Robot Build Rating . | . . . . . Part Schematics Acquired . | . . . . . Parts Built . | . . . . . Authchips . | . . . . . Time . | . . . . . Total Part Build Rating . | . . . . . Parts Repaired . | . . . . . Time . | . . . . . Parts Recycled . | . . . . . Recycled Matter . | . . . . . Retrieved Matter . | . . . . . Retrieved Components 1 | . 1 . . . Parts Scanalyzed . | . . . . . Part Schematics Acquired . | . . . . . Parts Damaged . | . . . . . Bothacking | -11 -10 -9 -8 -7 ------------ Run | Yrd Mat Mat Mat Fac Used RIF Installer . | . . . . . Robots Hacked . | . . . . . Non-combat . | . . . . . Combat . | . . . . . Robot Hacks Applied . | . . . . . Relay Couplers Released . | . . . . . Fabnet Peak Effective % . | . . . . . Robots Rewired . | . . . . . Allies Hacked . | . . . . . Hacks Repelled . | . . . . . Allies | -11 -10 -9 -8 -7 -------- Run | Yrd Mat Mat Mat Fac Total Allies 1 | . . . 1 . Largest Group 1 | . . . 1 1 Highest-Rated Group 15 | . . . 15 15 Highest-Rated Ally 15 | . . . 15 15 Total Orders . | . . . . . Ally Attacks 7 | . . . 7 . Total Damage 147 | . . . 147 . Kills 3 | . . . 3 . Allies Corrupted . | . . . . . Allies Melted . | . . . . . Intel | -11 -10 -9 -8 -7 ------- Run | Yrd Mat Mat Mat Fac Active Infowar (turns) 1646 | 40 650 796 160 . Optics 719 | . . 561 158 . Terrain 158 | . . . 158 . Seismic 1206 | 40 650 484 32 . Machine Analysis 232 | . . 232 . . Robot Analysis Total . | . . . . . Derelict Logs Recovered . | . . . . . Drone Launches . | . . . . . Drone Recoveries . | . . . . . Exploration | -11 -10 -9 -8 -7 ------------- Run | Yrd Mat Mat Mat Fac Turns Passed 2466 | 197 650 796 389 434 Spaces Moved 1655 | 151 447 411 335 311 Core 572 | 3 . . 258 311 Treads . | . . . . . Legs . | . . . . . Wheels 1083 | 148 447 411 77 . Hover . | . . . . . Flight . | . . . . . Fastest Speed 50 | 50 100 105 50 50 Average Speed 90 | 99 111 115 62 54 Slowest Speed 155 | 100 115 120 155 100 Overloaded Moves . | . . . . . Propulsion Burnouts . | . . . . . Robots Hopped . | . . . . . Potential Cave-ins . | . . . . . Cave-ins Triggered . | . . . . . Exploration Rate (%) 29 | 7 65 31 36 8 Regions Visited 4 Branch Regions . Pre-discovered Areas . | . . . . . Known Exits Taken . | . . . . . Unknown Exits Taken 4 | 1 1 1 1 . Scrap Searched . | . . . . . Spaces Dug 15 | . 8 . . 7 Terrain Destroyed 220 | . 115 27 31 47 Melee . | . . . . . Projectile . | . . . . . AOE 220 | . 115 27 31 47 Terrain Rammed . | . . . . . Walls Destroyed . | . . . . . Machines Disabled . | . . . . . Actions | -11 -10 -9 -8 -7 --------- Run | Yrd Mat Mat Mat Fac Total 2401 | 174 568 641 465 553 Wait 524 | . 80 141 85 218 Move 1651 | 150 446 410 334 311 Hop . | . . . . . Pick Up 36 | 5 14 15 2 . Fast Attach 10 | 7 . . 1 2 Attach 21 | . 2 9 9 1 Detach 1 | . . . 1 . Swap 26 | 1 8 15 2 . Drop 10 | . 2 8 . . Fire 121 | 11 16 43 30 21 Melee . | . . . . . Ram 1 | . . . 1 . Kick . | . . . . . Crush . | . . . . . Escape Stasis . | . . . . . Rewire . | . . . . . Trap . | . . . . . Miscellaneous . | . . . . . Route ------- -11/Scrapyard -10/Materials (discovered 3 exits: *Mat x2 / [*Min]) -9/Materials -8/Materials -7/Factory (discovered 1 exit: [*Fac]) History --------- Turn | Location | Event 8 | -11/Scrapyard | Discovered new exit (range 15) 198 | -11/Scrapyard | Entered Materials 325 | -10/Materials | Build established: Mutant 465 | -10/Materials | Discovered new exit (range 11) 562 | -10/Materials | Discovered new exit (range 16) 682 | -10/Materials | Discovered new exit (range 12) 848 | -10/Materials | Entered another Materials area 848 | -9/Materials | Evolved 2 slots: Utility x1, Weapon x1 1127 | -9/Materials | Build established: Skirmisher 1638 | -9/Materials | Discovered new exit (range 4) 1644 | -9/Materials | Entered another Materials area 1644 | -8/Materials | Evolved 2 slots: Propulsion x1, Utility x1 1802 | -8/Materials | Released all parts (5) 1820 | -8/Materials | Core integrity fell below 50% 1828 | -8/Materials | Lost 10 parts (1p4n2u3w) 1848 | -8/Materials | Garrison activated, responded to threat 1852 | -8/Materials | Met 7R-MNS 1913 | -8/Materials | Destroyed 9 combat bots 1993 | -8/Materials | Discovered new exit (range 13) 2033 | -8/Materials | Entered Factory 2033 | -7/Factory | Accompanied by 1 ally 2033 | -7/Factory | Evolved 2 slots: Propulsion x1, Utility x1 2034 | -7/Factory | Caught up to 7R-MNS 2067 | -7/Factory | Build established: Mutant 2184 | -7/Factory | Discovered new exit (range 16) 2194 | -7/Factory | Attacked by 7R-MNS 2289 | -7/Factory | Garrison activated, responded to threat 2324 | -7/Factory | Core integrity fell below 50% 2440 | -7/Factory | Core integrity fell below 20% 2467 | -7/Factory | Destroyed by C-17 Slicer with Blade Saw Last Messages --------------- 02439_ K-01 Serf collects debris. 02440_ U-05 Engineer lays Concrete. 02440_ R-06 Scavenger collects Structural Scanner. 02440_ U-05 Engineer lays Concrete. 02440_ Acquired 29 matter. 02441_ U-05 Engineer lays Concrete. 02441_ Acquired 44 matter. 02442_ U-05 Engineer lays Concrete. 02443_ K-01 Serf cleans the DSF Access. 02443_ U-05 Engineer lays Concrete. 02444_ R-06 Scavenger collects Terrain Scanner. 02445_ U-05 Engineer lays Concrete. 02445_ K-01 Serf collects debris. 02445_ U-05 Engineer lays Concrete. 02448_ K-01 Serf collects debris. 02449_ U-05 Engineer lays Concrete. 02451_ K-01 Serf destroyed. 02451_ R-06 Scavenger knocked back. 02461_ Flak Gun severed. Map ----- +----------------------------------------------------+ | ????????????????????? #???????????# | | ? ?????????????? !!! #???????????# " | | #????????????? !!! #???????????# " | | ############### !!! #???????????# " | | ## # #???????????# " | | ## """"""""" # #???????????# " | | ## / #???????????# " | | ## " " # #???????????# " | | # ## ""G"" # """" +???????????# " | | # ## # """" #???????????# " | | #### ######### """" #???????????# | | #T%########### ############### | | = ==%*|!*! """" ^ | | = ! ! | %=! """" ^ | | < =!%! ! =% %* """ % | | % =[!= % = ! | | %! ==%%!=* ! !!= *% | | %!%##### # ##+#############+######/######## | | !% ! %##?# # % # #??# | | ####+######## #!!| %= # #??# | | ## """" """ #!| =!* # #??# | | "" ! ! ## """" """" # [ = # #??# | | R = ##[ """" """" # # [ #??# | | "" ## """" """ #* # #??# | | ## """" "" " + # #??# | | = ## """"r" c@# # #??# | | =! ##* %* # ] # +?? | | =! ## *[% # ##########?? | | ##! # """#??????????? | | [=%############### """#??????????? | | !##????" ""#??????????? | | ! #?????"" ## *%F""#??????????? | | ############???? "" ?# ["""#??????????? | | ??????????????? ?# #??????????? | | ???????????????? ] | ?###### ####??????????? | | ??????????????? ??????###?????????????? | | ???????????????""" """ ??????????????????????? | | ?????????????????" """ ????????????????????????? | | ?????????????????"???" ????????????????????????? | | ?????????????????????" ?????????????????????????? | | ?????????????????????? ?????????????????????????? | | ?????????????????????????????????????????????????? | | ?????????????????????????????????????????????????? | | ?????????????????????????????????????????????????? | | ?????????????????????????????????????????????????? | | ?????????????????????????????????????????????????? | | ?????????????????????????????????????????????????? | | ?????????????????????????????????????????????????? | | ?????????????????????????????????????????????????? | | ?????????????????????????????????????????????????? | +----------------------------------------------------+ Best States ------------- Heat Dissipation 50 Energy Generation 14 Energy Capacity 280 Matter Stores 300 Matter Capacity 300 Sight Range 18 Terrain Scan Range 16 Terrain Scan Density 10 Armor Coverage 225 Evasion (%) 50 Item Schematics ----------------- None Robot Schematics ------------------ None Fabricated ------------ Nothing Repaired ---------- Nothing Alien Tech Used ----------------- None Achievements -------------- None Challenges ------------ None Game ------ Seed StasisAntimatterMapper Manual? 0 Play Time 00:54:51 Cumulative 72.5 hours Start 2025.07.30 @ 14:36:08 End 2025.07.30 @ 15:50:52 Sessions 1 Manual Loads 0 Difficulty Rogue Special Mode None Game No. 94 Rogue 94 Adventurer 0 Explorer 0 Win Type - Total 0 Types 0/0/0/0/0/0/0/0/0/0 Lore% 51 Gallery% 38 Achievement% 38 Wizard Run 0 Options --------- Layout 1 ASCII 0 Keyboard 0 Movement Arrows Keybinds 0 Fullscreen 1 Font 24/Smallcaps Map View 50x35 Zoom Use 0% Tactical HUD 1 Map Filters NONE Filters NONE Steam 1 RUN: 655a953d-7713-4025-9847-42e246ea174e